fUST/lending_fUST_20251004
["ID","MTS","AMOUNT","RATE_DAILY","PERIOD"]
[389010055,1759560673101,-4450.87,0.00023013,3]
[389010056,1759560673111,-500.0,0.00023013,3]
[389010057,1759560673122,-500.0,0.00023013,3]
[389010058,1759560673132,-2698.6,0.00023013,3]
[389010059,1759560673142,-1638.57,0.00023013,3]
[389010060,1759560673152,-500.0,0.00023013,3]
[389010061,1759560673162,-500.0,0.00023013,3]
[389010062,1759560673173,-929.92,0.00023013,3]
[389010063,1759560673183,-463.10270879,0.00023013,3]
[389010064,1759560673194,-10499.07,0.00023013,3]
[389010065,1759560673203,-500.0,0.00023013,3]
[389010066,1759560673214,-500.0,0.00023013,3]
[389010067,1759560673224,-1491.93,0.00023013,3]
[389010068,1759560673379,-1451.39,0.00023013,3]
[389010069,1759560673391,-500.0,0.00023013,3]
[389010070,1759560673402,-3737.77,0.00023013,3]
[389010071,1759560673412,-433.00232604,0.00023013,3]
[389010072,1759560673421,-500.0,0.00023013,3]
[389010073,1759560673431,-361.93042546,0.00023013,3]
[389010074,1759560673441,-1445.66,0.00023013,3]
[389010075,1759560673450,-500.0,0.00023013,3]
[389010076,1759560673460,-500.0,0.00023013,3]
[389010077,1759560673469,-500.0,0.00023013,3]
[389010078,1759560673479,-500.0,0.00023013,3]
[389010079,1759560673489,-500.0,0.00023013,3]
[389010080,1759560673499,-4487.28,0.00023013,3]
[389010081,1759560673508,-500.0,0.00023013,3]
[389010082,1759560673518,-715.3,0.00023013,3]
[389010083,1759560673528,-500.0,0.00023013,3]
[389010084,1759560673538,-1491.5,0.00023013,3]
[389010085,1759560673548,-612.81,0.00023013,3]
[389010086,1759560673558,-1339.05,0.00023013,3]
[389010087,1759560673567,-500.0,0.00023013,3]
[389010088,1759560673576,-538.08585052,0.00023013,3]
[389010089,1759560673585,-987.8,0.00023013,3]
[389010090,1759560673595,-519.61,0.00023013,3]
[389010091,1759560673605,-2965.9,0.00023013,3]
[389010092,1759560673615,-1142.03,0.00023013,3]
[389010093,1759560673624,-615.21,0.00023013,3]
[389010094,1759560673634,-1583.31,0.00023013,3]
[389010095,1759560673644,-500.0,0.00023013,3]
[389010096,1759560673654,-500.0,0.00023013,3]
[389010097,1759560673663,-500.0,0.00023013,3]
[389010098,1759560673673,-1043.17,0.00023013,3]
[389010099,1759560673683,-785.24,0.00023013,3]
[389010100,1759560673693,-500.0,0.00023013,3]
[389010101,1759560673703,-1390.35,0.00023013,3]
[389010102,1759560673712,-500.0,0.00023013,3]
[389010103,1759560673721,-1271.14,0.00023013,3]
[389010104,1759560673731,-770.11,0.00023013,3]
[389010105,1759560673741,-1991.57,0.00023013,3]
[389010106,1759560673750,-500.0,0.00023013,3]
[389010107,1759560673759,-1025.62,0.00023013,3]
[389010108,1759560673769,-3622.43,0.00023013,3]
[389010109,1759560673779,-2023.13,0.00023013,3]
[389010110,1759560673790,-207.62049741,0.00023013,3]
[389010111,1759560673801,-500.0,0.00023013,3]
[389010112,1759560673810,-500.0,0.00023013,3]
[389010113,1759560673820,-476.94797271,0.00023013,3]
[389010114,1759560673830,-500.0,0.00023013,3]
[389010115,1759560673840,-6461.22,0.00023013,3]
[389010116,1759560673849,-500.0,0.00023013,3]
[389010117,1759560673858,-500.0,0.00023013,3]
[389010118,1759560673867,-500.0,0.00023013,3]
[389010119,1759560673876,-500.0,0.00023013,3]
[389010120,1759560673886,-500.0,0.00023013,3]
[389010121,1759560673895,-1876.49,0.00023013,3]
[389010122,1759560673905,-505.62,0.00023013,3]
[389010123,1759560673915,-728.97,0.00023013,3]
[389010124,1759560673928,-155.83164512,0.00023013,3]
[389010125,1759560673937,-1834.46,0.00023013,3]
[389010126,1759560673948,-398.37352739,0.00023013,3]
[389010127,1759560673967,-3348.94,0.00023013,3]
[389010128,1759560673982,-210.24945655,0.00023013,3]
[389010129,1759560673994,-761.41,0.00023013,3]
[389010130,1759560674004,-500.0,0.00023013,3]
[389010131,1759560674015,-5019.66,0.00023013,3]
[389010132,1759560674025,-1680.0,0.00023014,2]
[389010133,1759560674035,-992.0,0.00023035,2]
[389010134,1759560674045,-1503.15310287,0.00023068,2]
[389010135,1759560674056,-1004.66094882,0.00023068,2]
[389010136,1759560674066,-481.28229901,0.00023068,2]
[389010137,1759560674076,-1500.0,0.00023068,2]
[389010138,1759560674087,-1067.06153931,0.00023068,2]
[389010139,1759560674097,-1500.0,0.00023068,2]
[389010140,1759560674107,-1500.0,0.00023068,2]
[389010141,1759560674117,-1500.0,0.00023068,2]
[389010142,1759560674127,-1500.0,0.00023068,2]
[389010143,1759560674136,-1500.0,0.00023068,2]
[389010144,1759560674147,-1500.0,0.00023068,2]
[389010145,1759560674157,-1552.06088064,0.00023068,2]
[389010146,1759560674167,-1500.0,0.00023068,2]
[389010147,1759560674176,-1532.63641154,0.00023068,2]
[389010148,1759560674186,-1500.0,0.00023068,2]
[389010149,1759560674196,-1500.0,0.00023068,2]
[389010150,1759560674206,-1500.0,0.00023068,2]
[389010151,1759560674216,-1444.00664856,0.00023068,2]
[389010152,1759560674226,-1500.0,0.00023068,2]
[389010153,1759560674235,-1500.0,0.00023068,2]
[389010154,1759560674246,-1500.0,0.00023068,2]
[389010155,1759560674256,-1500.0,0.00023068,2]
[389010156,1759560674266,-1500.0,0.00023068,2]
[389010157,1759560674275,-1500.0,0.00023068,2]
[389010158,1759560674285,-1500.0,0.00023068,2]
[389010159,1759560674295,-1500.0,0.00023068,2]
[389010160,1759560674306,-1500.0,0.00023068,2]
[389010161,1759560674316,-1500.0,0.00023068,2]
[389010162,1759560674325,-1500.0,0.00023068,2]
[389010163,1759560674335,-1278.29852331,0.00023068,2]
[389010164,1759560674344,-1500.0,0.00023068,2]
[389010165,1759560674354,-1500.0,0.00023068,2]
[389010166,1759560674363,-1500.0,0.00023068,2]
[389010167,1759560674373,-1500.0,0.00023068,2]
[389010168,1759560674383,-303.0,0.00023086,2]
[389010169,1759560674392,-236.07528156,0.00023088,2]
[389010170,1759560674402,-151.0,0.00023088,2]
[389010171,1759560674412,-155.05137794,0.00023088,2]
[389010172,1759560674421,-151.0,0.00023088,2]
[389010173,1759560674431,-151.0,0.00023088,2]
[389010174,1759560674441,-344.50898011,0.00023088,2]
[389010175,1759560674451,-151.0,0.00023088,2]
[389010176,1759560674461,-1003.0,0.00023088,2]
[389010177,1759560674470,-306.05629991,0.00023088,2]
[389010178,1759560674480,-360.0,0.0002316,2]
[389010179,1759560674490,-303.0,0.00023243,2]
[389010180,1759560674500,-1452.78532631,0.00023268,2]
[389010181,1759560674509,-1157.45475808,0.00023268,2]
[389010182,1759560674519,-450.0,0.00023268,2]
[389010183,1759560674529,-1000.0,0.00023268,2]
[389010184,1759560674538,-168.0,0.00023274,2]
[389010185,1759560674548,-500.0,0.00023282,2]
[389010186,1759560674557,-200.0,0.00023286,2]
[389010187,1759560674567,-504.62484857,0.00023287,3]
[389010188,1759560674576,-646.0,0.00023287,3]
[389010189,1759560674586,-500.0,0.00023287,3]
[389010190,1759560674596,-599.69,0.00023287,3]
[389010191,1759560674605,-547.21,0.00023287,3]
[389010192,1759560674614,-1842.46,0.00023287,3]
[389010193,1759560674623,-500.0,0.00023287,3]
[389010194,1759560674633,-500.0,0.00023287,3]
[389010195,1759560674642,-500.0,0.00023287,3]
[389010196,1759560674651,-178.31769652,0.00023287,3]
[389010197,1759560674661,-500.0,0.00023287,3]
[389010198,1759560674670,-1374.26,0.00023287,3]
[389010199,1759560674679,-500.0,0.00023287,3]
[389010200,1759560674689,-3343.34,0.00023287,3]
[389010201,1759560674698,-500.0,0.00023287,3]
[389010202,1759560674708,-500.0,0.00023287,3]
[389010203,1759560674717,-500.0,0.00023287,3]
[389010204,1759560674726,-500.0,0.00023287,3]
[389010205,1759560674736,-500.0,0.00023287,3]
[389010206,1759560674745,-631.64,0.00023287,3]
[389010207,1759560674755,-500.0,0.00023287,3]
[389010208,1759560674765,-777.68,0.00023287,3]
[389010209,1759560674774,-500.0,0.00023287,3]
[389010210,1759560674783,-500.0,0.00023287,3]
[389010211,1759560674793,-997.49,0.00023287,3]
[389010212,1759560674802,-835.29,0.00023287,3]
[389010213,1759560674812,-500.0,0.00023287,3]
[389010214,1759560674821,-266.72883709,0.00023287,3]
[389010215,1759560674831,-500.0,0.00023287,3]
[389010216,1759560674840,-1053.37,0.00023287,3]
[389010217,1759560674849,-500.0,0.00023287,3]
[389010218,1759560674858,-920.7,0.00023287,3]
[389010219,1759560674868,-1449.67,0.00023287,3]
[389010220,1759560674877,-185.54926364,0.00023287,3]
[389010221,1759560674887,-1075.68,0.00023287,3]
[389010222,1759560674896,-732.66,0.00023287,3]
[389010223,1759560674906,-1089.69,0.00023287,3]
[389010224,1759560674915,-500.0,0.00023287,3]
[389010225,1759560674924,-500.0,0.00023287,3]
[389010226,1759560674933,-500.0,0.00023287,3]
[389010227,1759560674942,-482.34291034,0.00023287,3]
[389010228,1759560674952,-1450.42,0.00023287,3]
[389010229,1759560674961,-500.0,0.00023287,3]
[389010230,1759560674971,-500.0,0.00023287,3]
[389010231,1759560674985,-533.72,0.00023287,3]
[389010232,1759560674994,-500.0,0.00023287,3]
[389010233,1759560675003,-500.0,0.00023287,3]
[389010234,1759560675012,-500.0,0.00023287,3]
[389010235,1759560675022,-501.27,0.00023287,3]
[389010236,1759560675031,-500.0,0.00023287,3]
[389010237,1759560675041,-829.1,0.00023287,3]
[389010238,1759560675051,-500.0,0.00023287,3]
[389010239,1759560675060,-500.0,0.00023287,3]
[389010240,1759560675069,-500.0,0.00023287,3]
[389010241,1759560675079,-568.37,0.00023287,3]
[389010242,1759560675088,-500.0,0.00023287,3]
[389010243,1759560675097,-500.0,0.00023287,3]
[389010244,1759560675106,-500.0,0.00023287,3]
[389010245,1759560675115,-500.0,0.00023287,3]
[389010246,1759560675124,-462.92886806,0.00023287,3]
[389010247,1759560675134,-500.0,0.00023287,3]
[389010248,1759560675143,-1768.05,0.00023287,3]
[389010249,1759560675152,-697.56,0.00023287,3]
[389010250,1759560675161,-500.0,0.00023287,3]
[389010251,1759560675171,-3135.84,0.00023287,3]
[389010252,1759560675180,-748.14,0.00023287,3]
[389010253,1759560675190,-943.9,0.00023287,3]
[389010254,1759560675199,-500.0,0.00023287,3]
[389010255,1759560675208,-500.0,0.00023287,3]
[389010256,1759560675217,-986.28,0.00023287,3]
[389010257,1759560675226,-1083.34,0.00023287,3]
[389010258,1759560675235,-500.0,0.00023287,3]
[389010259,1759560675245,-500.0,0.00023287,3]
[389010260,1759560675254,-500.0,0.00023287,3]
[389010261,1759560675264,-500.0,0.00023287,3]
[389010262,1759560675273,-1225.94,0.00023287,3]
[389010263,1759560675282,-563.08,0.00023287,3]
[389010264,1759560675292,-500.0,0.00023287,3]
[389010265,1759560675301,-500.0,0.00023287,3]
[389010266,1759560675310,-500.0,0.00023287,3]
[389010267,1759560675320,-707.3,0.00023287,3]
[389010268,1759560675329,-528.39763271,0.00023287,3]
[389010269,1759560675338,-1030.77,0.00023287,3]
[389010270,1759560675347,-1690.12,0.00023287,3]
[389010271,1759560675356,-403.09854945,0.00023287,3]
[389010272,1759560675365,-500.0,0.00023287,3]
[389010273,1759560675375,-656.41,0.00023287,3]
[389010274,1759560675384,-1321.92,0.00023287,3]
[389010275,1759560675394,-500.0,0.00023287,3]
[389010276,1759560675403,-500.0,0.00023287,3]
[389010277,1759560675413,-500.0,0.00023287,3]
[389010278,1759560675422,-500.0,0.00023287,3]
[389010279,1759560675431,-500.0,0.00023287,3]
[389010280,1759560675441,-751.87,0.00023287,3]
[389010281,1759560675450,-1067.72,0.00023287,3]
[389010282,1759560675459,-500.0,0.00023287,3]
[389010283,1759560675469,-500.0,0.00023287,3]
[389010284,1759560675478,-500.0,0.00023287,3]
[389010285,1759560675488,-603.08,0.00023287,3]
[389010286,1759560675496,-500.0,0.00023287,3]
[389010287,1759560675505,-705.27,0.00023287,3]
[389010288,1759560675515,-1086.95,0.00023287,3]
[389010289,1759560675524,-500.0,0.00023287,3]
[389010290,1759560675533,-503.11,0.00023287,3]
[389010291,1759560675542,-500.0,0.00023287,3]
[389010292,1759560675551,-500.0,0.00023287,3]
[389010293,1759560675561,-500.0,0.00023287,3]
[389010294,1759560675570,-500.0,0.00023287,3]
[389010295,1759560675579,-500.0,0.00023287,3]
[389010296,1759560675588,-648.5025742,0.00023287,3]
[389010297,1759560675598,-500.0,0.00023287,3]
[389010298,1759560675607,-500.0,0.00023287,3]
[389010299,1759560675617,-500.0,0.00023287,3]
[389010300,1759560675626,-3063.97,0.00023287,3]
[389010301,1759560675635,-500.0,0.00023287,3]
[389010302,1759560675644,-500.0,0.00023287,3]
[389010303,1759560675654,-500.0,0.00023287,3]
[389010304,1759560675663,-500.0,0.00023287,3]
[389010305,1759560675672,-500.0,0.00023287,3]
[389010306,1759560675682,-2015.87,0.00023287,3]
[389010307,1759560675691,-882.11,0.00023287,3]
[389010308,1759560675700,-500.0,0.00023287,3]
[389010309,1759560675709,-1592.96,0.00023287,3]
[389010310,1759560675719,-500.0,0.00023287,3]
[389010311,1759560675728,-500.0,0.00023287,3]
[389010312,1759560675737,-902.37,0.00023287,3]
[389010313,1759560675746,-500.0,0.00023287,3]
[389010314,1759560675755,-500.0,0.00023287,2]
[389010315,1759560675765,-545.55,0.00023287,3]
[389010316,1759560675774,-1555.66,0.00023287,3]
[389010317,1759560675783,-500.0,0.00023287,3]
[389010318,1759560675792,-500.0,0.00023287,3]
[389010319,1759560675802,-562.18,0.00023287,3]
[389010320,1759560675812,-500.0,0.00023287,3]
[389010321,1759560675821,-539.88,0.00023287,3]
[389010322,1759560675830,-500.0,0.00023287,3]
[389010323,1759560675839,-500.0,0.00023287,3]
[389010324,1759560675848,-649.9,0.00023287,3]
[389010325,1759560675858,-500.0,0.00023287,3]
[389010326,1759560675867,-500.0,0.00023287,3]
[389010327,1759560675876,-1554.42,0.00023287,3]
[389010328,1759560675886,-3135.98,0.00023287,3]
[389010329,1759560675895,-2091.91,0.00023287,3]
[389010330,1759560675905,-500.0,0.00023287,3]
[389010331,1759560675914,-500.0,0.00023287,3]
[389010332,1759560675924,-500.0,0.00023287,3]
[389010333,1759560675933,-500.0,0.00023287,3]
[389010334,1759560675942,-1314.83,0.00023287,3]
[389010335,1759560675951,-863.41,0.00023287,3]
[389010336,1759560675960,-971.49,0.00023287,3]
[389010337,1759560675969,-767.34,0.00023287,3]
[389010338,1759560675981,-500.0,0.00023287,3]
[389010339,1759560675991,-511.85530165,0.00023287,3]
[389010340,1759560676000,-500.0,0.00023287,3]
[389010341,1759560676010,-500.0,0.00023287,3]
[389010342,1759560676019,-743.49,0.00023287,3]
[389010343,1759560676028,-500.0,0.00023287,2]
[389010344,1759560676038,-1637.42,0.00023287,3]
[389010345,1759560676047,-500.0,0.00023287,3]
[389010346,1759560676056,-1161.41,0.00023287,3]
[389010347,1759560676065,-500.0,0.00023287,3]
[389010348,1759560676074,-539.03,0.00023287,3]
[389010349,1759560676083,-500.0,0.00023287,3]
[389010350,1759560676093,-500.0,0.00023287,3]
[389010351,1759560676102,-636.6,0.00023287,3]
[389010352,1759560676111,-511.22,0.00023287,3]
[389010353,1759560676120,-500.0,0.00023287,3]
[389010354,1759560676130,-1269.28,0.00023287,3]
[389010355,1759560676139,-500.0,0.00023287,3]
[389010356,1759560676147,-500.0,0.00023287,3]
[389010357,1759560676157,-500.0,0.00023287,3]
[389010358,1759560676166,-761.57,0.00023287,3]
[389010359,1759560676175,-1168.53,0.00023287,3]
[389010360,1759560676185,-1910.56,0.00023287,3]
[389010361,1759560676194,-805.89,0.00023287,3]
[389010362,1759560676203,-500.0,0.00023287,3]
[389010363,1759560676212,-241.85759531,0.00023287,3]
[389010364,1759560676221,-584.95,0.00023287,3]
[389010365,1759560676230,-446.15340862,0.00023287,3]
[389010366,1759560676239,-500.0,0.00023287,3]
[389010367,1759560676248,-500.0,0.00023287,3]
[389010368,1759560676258,-543.76,0.00023287,3]
[389010369,1759560676268,-3954.2,0.00023287,3]
[389010370,1759560676278,-500.0,0.00023287,3]
[389010371,1759560676287,-600.62,0.00023287,3]
[389010372,1759560676296,-500.0,0.00023287,3]
[389010373,1759560676305,-1029.47,0.00023287,3]
[389010374,1759560676314,-1568.4,0.00023287,3]
[389010375,1759560676323,-500.0,0.00023287,3]
[389010376,1759560676333,-500.0,0.00023287,3]
[389010377,1759560676342,-631.7,0.00023287,3]
[389010378,1759560676351,-500.0,0.00023287,3]
[389010379,1759560676362,-500.0,0.00023287,3]
[389010380,1759560676372,-500.0,0.00023287,3]
[389010381,1759560676380,-549.7,0.00023287,3]
[389010382,1759560676390,-408.67033245,0.00023287,3]
[389010383,1759560676399,-500.0,0.00023287,3]
[389010384,1759560676408,-500.0,0.00023287,3]
[389010385,1759560676417,-500.0,0.00023287,3]
[389010386,1759560676426,-868.91,0.00023287,3]
[389010387,1759560676436,-500.0,0.00023287,3]
[389010388,1759560676447,-697.24,0.00023287,3]
[389010389,1759560676456,-500.0,0.00023287,3]
[389010390,1759560676466,-500.0,0.00023287,3]
[389010391,1759560676476,-683.44,0.00023287,3]
[389010392,1759560676485,-500.0,0.00023287,3]
[389010393,1759560676663,-580.14,0.00023287,3]
[389010394,1759560676673,-6388.98,0.00023287,3]
[389010395,1759560676684,-500.0,0.00023287,3]
[389010396,1759560676694,-500.0,0.00023287,3]
[389010397,1759560676704,-828.82,0.00023287,3]
[389010398,1759560676714,-500.0,0.00023287,3]
[389010399,1759560676723,-522.14,0.00023287,3]
[389010400,1759560676733,-991.21,0.00023287,3]
[389010401,1759560676743,-1041.86,0.00023287,3]
[389010402,1759560676752,-1986.41,0.00023287,3]
[389010403,1759560676762,-500.0,0.00023287,3]
[389010404,1759560676771,-1156.15,0.00023287,3]
[389010405,1759560676781,-674.43,0.00023287,3]
[389010406,1759560676790,-924.04,0.00023287,3]
[389010407,1759560676799,-1748.78,0.00023287,3]
[389010408,1759560676809,-581.4,0.00023287,3]
[389010409,1759560676818,-500.0,0.00023287,3]
[389010410,1759560676827,-905.44,0.00023287,3]
[389010411,1759560676836,-571.37,0.00023287,3]
[389010412,1759560676845,-653.71,0.00023287,3]
[389010413,1759560676855,-1561.34,0.00023287,3]
[389010414,1759560676865,-500.0,0.00023287,3]
[389010415,1759560676874,-500.0,0.00023287,3]
[389010416,1759560676884,-1086.89,0.00023287,3]
[389010417,1759560676893,-500.0,0.00023287,3]
[389010418,1759560676904,-1226.68,0.00023287,3]
[389010419,1759560676913,-500.0,0.00023287,3]
[389010420,1759560676923,-500.0,0.00023287,3]
[389010421,1759560676933,-500.0,0.00023287,3]
[389010422,1759560676943,-500.0,0.00023287,3]
[389010423,1759560676953,-546.86,0.00023287,3]
[389010424,1759560676962,-917.82,0.00023287,3]
[389010425,1759560676972,-1026.48,0.00023287,3]
[389010426,1759560676987,-500.0,0.00023287,3]
[389010427,1759560676996,-500.0,0.00023287,3]
[389010428,1759560677006,-680.39,0.00023287,3]
[389010429,1759560677015,-2304.04,0.00023287,3]
[389010430,1759560677027,-500.0,0.00023287,3]
[389010431,1759560677036,-500.0,0.00023287,3]
[389010432,1759560677046,-500.0,0.00023287,3]
[389010433,1759560677056,-669.02,0.00023287,3]
[389010434,1759560677065,-2915.74,0.00023287,3]
[389010435,1759560677075,-635.92576878,0.00023287,3]
[389010436,1759560677085,-500.0,0.00023287,3]
[389010437,1759560677094,-502.94163145,0.00023287,2]
[389010438,1759560677104,-915.3,0.00023287,3]
[389010439,1759560677114,-500.0,0.00023287,3]
[389010440,1759560677123,-1286.32,0.00023287,3]
[389010441,1759560677132,-500.0,0.00023287,3]
[389010442,1759560677144,-500.0,0.00023287,3]
[389010443,1759560677153,-500.0,0.00023287,3]
[389010444,1759560677162,-2035.86,0.00023287,3]
[389010445,1759560677171,-500.0,0.00023287,3]
[389010446,1759560677181,-500.0,0.00023287,3]
[389010447,1759560677191,-567.60700122,0.00023287,3]
[389010448,1759560677201,-756.07,0.00023287,3]
[389010449,1759560677210,-500.0,0.00023287,3]
[389010450,1759560677222,-382.59827729,0.00023287,3]
[389010451,1759560677231,-768.72,0.00023287,3]
[389010452,1759560677241,-1057.87,0.00023287,3]
[389010453,1759560677251,-738.16,0.00023287,3]
[389010454,1759560677262,-500.0,0.00023287,3]
[389010455,1759560677272,-636.08,0.00023287,3]
[389010456,1759560677281,-1408.29,0.00023287,3]
[389010457,1759560677291,-500.0,0.00023287,3]
[389010458,1759560677300,-500.0,0.00023287,3]
[389010459,1759560677309,-500.0,0.00023287,3]
[389010460,1759560677318,-1171.53,0.00023287,3]
[389010461,1759560677327,-2461.76,0.00023287,3]
[389010462,1759560677336,-1079.04,0.00023287,3]
[389010463,1759560677346,-500.0,0.00023287,3]
[389010464,1759560677355,-500.0,0.00023287,3]
[389010465,1759560677365,-746.78,0.00023287,3]
[389010466,1759560677374,-500.0,0.00023287,3]
[389010467,1759560677383,-500.0,0.00023287,3]
[389010468,1759560677393,-1291.71,0.00023287,3]
[389010469,1759560677403,-828.76,0.00023287,3]
[389010470,1759560677412,-500.0,0.00023287,3]
[389010471,1759560677422,-1613.58,0.00023287,3]
[389010472,1759560677431,-5365.04,0.00023287,3]
[389010473,1759560677440,-548.47,0.00023287,3]
[389010474,1759560677450,-7286.14,0.00023287,3]
[389010475,1759560677459,-500.0,0.00023287,3]
[389010476,1759560677469,-1253.24,0.00023287,3]
[389010477,1759560677478,-500.0,0.00023287,3]
[389010478,1759560677487,-2494.76,0.00023287,3]
[389010479,1759560677496,-500.0,0.00023287,3]
[389010480,1759560677505,-565.62,0.00023287,3]
[389010481,1759560677515,-976.86,0.00023287,3]
[389010482,1759560677524,-605.07,0.00023287,3]
[389010483,1759560677533,-500.0,0.00023287,3]
[389010484,1759560677542,-500.0,0.00023287,3]
[389010485,1759560677552,-500.0,0.00023287,3]
[389010486,1759560677561,-4450.87,0.00023287,3]
[389010487,1759560677571,-500.0,0.00023287,3]
[389010488,1759560677580,-500.0,0.00023287,3]
[389010489,1759560677589,-500.0,0.00023287,3]
[389010490,1759560677598,-2698.6,0.00023287,3]
[389010491,1759560677608,-1638.57,0.00023287,3]
[389010492,1759560677617,-500.0,0.00023287,3]
[389010493,1759560677626,-500.0,0.00023287,3]
[389010494,1759560677636,-929.92,0.00023287,3]
[389010495,1759560677646,-10499.07,0.00023287,3]
[389010496,1759560677655,-500.0,0.00023287,3]
[389010497,1759560677665,-500.0,0.00023287,3]
[389010498,1759560677679,-1491.93,0.00023287,3]
[389010499,1759560677690,-1451.39,0.00023287,3]
[389010500,1759560677699,-500.0,0.00023287,3]
[389010501,1759560677709,-3737.77,0.00023287,3]
[389010502,1759560677719,-500.0,0.00023287,3]
[389010503,1759560677728,-1445.66,0.00023287,3]
[389010504,1759560677738,-500.0,0.00023287,3]
[389010505,1759560677748,-500.0,0.00023287,3]
[389010506,1759560677757,-500.0,0.00023287,3]
[389010507,1759560677767,-500.0,0.00023287,3]
[389010508,1759560677777,-500.0,0.00023287,3]
[389010509,1759560677787,-4487.28,0.00023287,3]
[389010510,1759560677797,-500.0,0.00023287,3]
[389010511,1759560677806,-715.3,0.00023287,3]
[389010512,1759560677816,-500.0,0.00023287,3]
[389010513,1759560677826,-1491.5,0.00023287,3]
[389010514,1759560677835,-612.81,0.00023287,3]
[389010515,1759560677844,-1339.05,0.00023287,3]
[389010516,1759560677854,-500.0,0.00023287,3]
[389010517,1759560677863,-987.8,0.00023287,3]
[389010518,1759560677872,-519.61,0.00023287,3]
[389010519,1759560677881,-2965.9,0.00023287,3]
[389010520,1759560677891,-1142.03,0.00023287,3]
[389010521,1759560677901,-615.21,0.00023287,3]
[389010522,1759560677910,-1583.31,0.00023287,3]
[389010523,1759560677921,-500.0,0.00023287,3]
[389010524,1759560677930,-500.0,0.00023287,3]
[389010525,1759560677941,-500.0,0.00023287,3]
[389010526,1759560677951,-1043.17,0.00023287,3]
[389010527,1759560677962,-500.0,0.00023287,3]
[389010528,1759560677972,-785.24,0.00023287,3]
[389010529,1759560677988,-1390.35,0.00023287,3]
[389010530,1759560677998,-500.0,0.00023287,3]
[389010531,1759560678008,-1271.14,0.00023287,3]
[389010532,1759560678019,-770.11,0.00023287,3]
[389010533,1759560678029,-1991.57,0.00023287,3]
[389010534,1759560678039,-500.0,0.00023287,3]
[389010535,1759560678048,-1025.62,0.00023287,3]
[389010536,1759560678059,-3622.43,0.00023287,3]
[389010537,1759560678068,-2023.13,0.00023287,3]
[389010538,1759560678078,-500.0,0.00023287,3]
[389010539,1759560678087,-500.0,0.00023287,3]
[389010540,1759560678097,-500.0,0.00023287,3]
[389010541,1759560678107,-6461.22,0.00023287,3]
[389010542,1759560678116,-437.5096613,0.00023287,3]
[389010543,1759560678125,-500.0,0.00023287,3]
[389010544,1759560678134,-500.0,0.00023287,3]
[389010545,1759560678144,-500.0,0.00023287,3]
[389010546,1759560678154,-500.0,0.00023287,3]
[389010547,1759560678164,-1876.49,0.00023287,3]
[389010548,1759560678175,-505.62,0.00023287,3]
[389010549,1759560678184,-728.97,0.00023287,3]
[389010550,1759560678194,-1834.46,0.00023287,3]
[389010551,1759560678203,-3348.94,0.00023287,3]
[389010552,1759560678212,-761.41,0.00023287,3]
[389010553,1759560678222,-500.0,0.00023287,3]
[389010554,1759560678232,-5019.66,0.00023287,3]